fUSD/lending_fUSD_20260617
["ID","MTS","AMOUNT","RATE_DAILY","PERIOD"]
[425249865,1781634650000,-391.37708119,0.00028409,7]
[425249863,1781634650000,-334.95742142,0.00028409,7]
[425249867,1781634650000,-394.3941381,0.00028418,7]
[425249875,1781634650000,-369.37914045,0.00028418,7]
[425249869,1781634650000,-324.22328947,0.00028418,7]
[425249870,1781634650000,-379.90660517,0.00028418,7]
[425249871,1781634650000,-377.4674413,0.00028418,7]
[425249874,1781634650000,-342.41090832,0.00028418,7]
[425249873,1781634650000,-312.68651799,0.00028418,7]
[425249876,1781634650000,-154.52516762,0.00028418,7]
[425249877,1781634650000,-368.73404972,0.00028418,7]
[425249860,1781634650000,-328.99459802,0.00028409,7]
[425249872,1781634650000,-434.07357527,0.00028418,7]
[425249859,1781634650000,-217.27853933,0.00028409,7]
[425249847,1781634650000,-311.8190625,0.00028409,7]
[425249856,1781634650000,-176.81579741,0.00028409,2]
[425249843,1781634650000,-200.58893583,0.00028317,2]
[425249845,1781634650000,-333.43037099,0.00028408,7]
[425249842,1781634650000,-1944.57,0.000283,7]
[425249839,1781634650000,-260.4103811,0.00028254,2]
[425249841,1781634650000,-2886.11,0.000283,7]
[425249844,1781634650000,-6078.0,0.00028403,2]
[425249883,1781634650000,-332.70874591,0.00028418,7]
[425249840,1781634650000,-151.0,0.00028254,2]
[425249858,1781634650000,-176.0698863,0.00028409,2]
[425249846,1781634650000,-325.80980507,0.00028409,7]
[425249849,1781634650000,-233.15999988,0.00028409,5]
[425249852,1781634650000,-225.07139675,0.00028409,7]
[425249851,1781634650000,-170.77910681,0.00028409,7]
[425249850,1781634650000,-373.74844597,0.00028409,7]
[425249854,1781634650000,-364.46188682,0.00028409,2]
[425249853,1781634650000,-406.52818096,0.00028409,5]
[425249857,1781634650000,-243.25385441,0.00028409,7]
[425249855,1781634650000,-155.84442586,0.00028409,2]
[425249848,1781634650000,-310.90655255,0.00028409,7]
[425249879,1781634650000,-394.24069088,0.00028418,7]
[425249868,1781634650000,-349.48489573,0.00028418,7]
[425249878,1781634650000,-383.36695958,0.00028418,7]
[425249902,1781634650000,-366.5857688,0.0002845,7]
[425249906,1781634650000,-5000.0,0.00028548,7]
[425249901,1781634650000,-304.7406497,0.0002845,7]
[425249909,1781634650000,-500.0,0.00028578,16]
[425249912,1781634650000,-2000.0,0.0002863,2]
[425249916,1781634650000,-1184.39,0.0002863,2]
[425249910,1781634650000,-544.0,0.00028588,7]
[425249908,1781634650000,-5000.74745351,0.00028574,7]
[425249913,1781634650000,-300.38,0.0002863,2]
[425249914,1781634650000,-229.11,0.0002863,2]
[425249911,1781634650000,-170.5,0.00028595,7]
[425249915,1781634650000,-3363.26,0.0002863,30]
[425249917,1781634650000,-3650.11,0.0002863,30]
[425249918,1781634650000,-6178.23,0.0002863,30]
[425249920,1781634650000,-1184.42,0.0002863,2]
[425249919,1781634650000,-3359.62,0.0002863,30]
[425249882,1781634650000,-439.8258206,0.00028418,7]
[425249907,1781634650000,-770.0,0.00028574,5]
[425249900,1781634650000,-414.95147965,0.0002845,7]
[425249880,1781634650000,-417.7357144,0.00028418,7]
[425249899,1781634650000,-193.57827877,0.0002845,7]
[425249881,1781634650000,-307.91632317,0.00028418,7]
[425249905,1781634650000,-307.57783561,0.00028538,2]
[425249884,1781634650000,-356.40878807,0.00028418,7]
[425249885,1781634650000,-217.55449981,0.00028418,7]
[425249887,1781634650000,-243.45672662,0.00028418,7]
[425249895,1781634650000,-301.60462417,0.0002845,7]
[425249888,1781634650000,-313.07577888,0.00028418,7]
[425249891,1781634650000,-449.59614307,0.00028418,7]
[425249890,1781634650000,-224.22163447,0.00028418,2]
[425249886,1781634650000,-177.7090854,0.00028418,7]
[425249892,1781634650000,-397.92712936,0.00028418,7]
[425249893,1781634650000,-407.38102209,0.00028418,7]
[425249894,1781634650000,-322.4664035,0.00028418,7]
[425249896,1781634650000,-413.59643825,0.0002845,7]
[425249898,1781634650000,-399.90689087,0.0002845,7]
[425249897,1781634650000,-304.50826624,0.0002845,7]
[425249904,1781634650000,-2991.49051684,0.00028525,2]
[425249889,1781634650000,-328.93769979,0.00028418,7]
[425249903,1781634650000,-394.67894019,0.0002845,7]
[425249958,1781634651000,-25000.0,0.000289,7]
[425249956,1781634651000,-4927.52,0.000289,2]
[425249960,1781634651000,-200.0,0.000289,2]
[425249954,1781634651000,-5448.54,0.000289,2]
[425249955,1781634651000,-343.0,0.000289,2]
[425249953,1781634651000,-25000.0,0.00028891,7]
[425249948,1781634651000,-1184.39,0.00028852,7]
[425249944,1781634651000,-270.0455652,0.00028802,2]
[425249959,1781634651000,-200.0,0.000289,2]
[425249957,1781634651000,-10403.92,0.000289,2]
[425249964,1781634651000,-5800.0,0.00028924,2]
[425249969,1781634651000,-5800.0,0.00028949,2]
[425249963,1781634651000,-1184.42,0.00028915,2]
[425249962,1781634651000,-1184.39,0.00028915,2]
[425249965,1781634651000,-5800.0,0.00028932,2]
[425249967,1781634651000,-1184.39,0.00028947,7]
[425249970,1781634651000,-5800.0,0.00028958,2]
[425249966,1781634651000,-5800.0,0.00028941,2]
[425249972,1781634651000,-3650.11,0.00028964,2]
[425249947,1781634651000,-1184.42,0.0002882,2]
[425249968,1781634651000,-1184.42,0.00028947,7]
[425249971,1781634651000,-3363.26,0.00028964,2]
[425249973,1781634651000,-6178.23,0.00028964,2]
[425249974,1781634651000,-3359.62,0.00028964,2]
[425249961,1781634651000,-5800.0,0.00028915,2]
[425249951,1781634651000,-1184.39,0.00028883,30]
[425249938,1781634651000,-3650.11,0.00028797,7]
[425249949,1781634651000,-1184.42,0.00028852,7]
[425249975,1781634651000,-6171.52,0.00028964,2]
[425249926,1781634651000,-1184.42,0.00028693,30]
[425249925,1781634651000,-1184.39,0.00028693,30]
[425249928,1781634651000,-1184.42,0.00028725,2]
[425249922,1781634651000,-3646.17,0.0002863,30]
[425249929,1781634651000,-723.0,0.00028739,3]
[425249921,1781634651000,-6171.52,0.0002863,30]
[425249923,1781634651000,-1184.39,0.00028661,7]
[425249924,1781634651000,-1184.42,0.00028661,7]
[425249930,1781634651000,-1184.39,0.00028756,7]
[425249931,1781634651000,-1184.42,0.00028756,7]
[425249940,1781634651000,-3359.62,0.00028797,7]
[425249932,1781634651000,-158.31450009,0.00028766,2]
[425249934,1781634651000,-150.0,0.00028767,2]
[425249933,1781634651000,-476.10443138,0.00028766,2]
[425249937,1781634651000,-3363.26,0.00028797,7]
[425249935,1781634651000,-1184.39,0.00028788,30]
[425249936,1781634651000,-1184.42,0.00028788,30]
[425249939,1781634651000,-6178.23,0.00028797,7]
[425249941,1781634651000,-6171.52,0.00028797,7]
[425249942,1781634651000,-3646.17,0.00028797,7]
[425249943,1781634651000,-242.15909246,0.00028802,2]
[425249946,1781634651000,-1184.39,0.0002882,2]
[425249952,1781634651000,-1184.42,0.00028883,30]
[425249945,1781634651000,-151.0,0.00028802,2]
[425249950,1781634651000,-470401.56935295,0.0002888,60]
[425249927,1781634651000,-1184.39,0.00028725,2]
[425249976,1781634651000,-3646.17,0.00028964,2]
[425249980,1781634651000,-1184.39,0.00028979,30]
[425250007,1781634651000,-200.0,0.00029,2]
[425250011,1781634651000,-500.0,0.00029,2]
[425250010,1781634651000,-500.0,0.00029,2]
[425250013,1781634651000,-505.48,0.00029,2]
[425250012,1781634651000,-500.0,0.00029,2]
[425250014,1781634651000,-200.0,0.00029,2]
[425250015,1781634651000,-200.0,0.00029,2]
[425250016,1781634651000,-200.0,0.00029,2]
[425250017,1781634651000,-200.0,0.00029,2]
[425250020,1781634651000,-200.0,0.00029,2]
[425250019,1781634651000,-200.0,0.00029,2]
[425250018,1781634651000,-200.0,0.00029,2]
[425250024,1781634651000,-200.0,0.00029,2]
[425250023,1781634651000,-200.0,0.00029,2]
[425250025,1781634651000,-200.0,0.00029,2]
[425250029,1781634651000,-200.0,0.00029,2]
[425250027,1781634651000,-200.0,0.00029,2]
[425250032,1781634651000,-200.0,0.00029,2]
[425250031,1781634651000,-200.0,0.00029,2]
[425250030,1781634651000,-200.0,0.00029,2]
[425250022,1781634651000,-200.0,0.00029,2]
[425250026,1781634651000,-200.0,0.00029,2]
[425250028,1781634651000,-200.0,0.00029,2]
[425250033,1781634651000,-222.38,0.00029,2]
[425249977,1781634651000,-5800.0,0.00028966,2]
[425250008,1781634651000,-200.0,0.00029,2]
[425250005,1781634651000,-1065.91559192,0.00029,2]
[425250021,1781634651000,-200.0,0.00029,2]
[425250004,1781634651000,-177.16309944,0.00029,2]
[425250006,1781634651000,-5800.0,0.00029,2]
[425249978,1781634651000,-40547.23100834,0.0002897,6]
[425249984,1781634651000,-5800.0,0.00028992,2]
[425249985,1781634651000,-151.0,0.00028997,7]
[425249982,1781634651000,-5800.0,0.00028983,2]
[425249981,1781634651000,-1184.42,0.00028979,30]
[425249983,1781634651000,-11233.53917483,0.0002899,7]
[425249979,1781634651000,-5800.0,0.00028975,2]
[425249986,1781634651000,-500.0,0.00029,2]
[425249989,1781634651000,-500.0,0.00029,2]
[425249998,1781634651000,-425.80933261,0.00029,2]
[425249990,1781634651000,-500.0,0.00029,2]
[425249992,1781634651000,-200.0,0.00029,2]
[425249987,1781634651000,-500.0,0.00029,2]
[425249997,1781634651000,-9999.999999,0.00029,2]
[425250002,1781634651000,-1252.1975613,0.00029,7]
[425250009,1781634651000,-200.0,0.00029,2]
[425250000,1781634651000,-2325.06058451,0.00029,2]
[425250001,1781634651000,-54000.0,0.00029,2]
[425249999,1781634651000,-1503.12954683,0.00029,2]
[425249988,1781634651000,-500.0,0.00029,2]
[425250003,1781634651000,-650.53596076,0.00029,2]
[425249991,1781634651000,-200.0,0.00029,2]
[425249994,1781634651000,-508.0,0.00029,10]
[425249993,1781634651000,-200.0,0.00029,2]
[425249996,1781634651000,-1002.18745354,0.00029,2]
[425249995,1781634651000,-41472.40405831,0.00029,2]
[425250076,1781634652000,-2886.11,0.000292,7]
[425250072,1781634652000,-1184.39,0.00029137,7]
[425250073,1781634652000,-1184.42,0.00029137,7]
[425250074,1781634652000,-1184.39,0.00029169,30]
[425250078,1781634652000,-1184.39,0.00029201,2]
[425250081,1781634652000,-1184.49,0.00029232,7]
[425250079,1781634652000,-1184.42,0.00029201,2]
[425250080,1781634652000,-1184.43,0.00029232,7]
[425250069,1781634652000,-3359.62,0.00029132,30]
[425250066,1781634652000,-3363.26,0.00029132,30]
[425250063,1781634652000,-1184.39,0.00029105,2]
[425250061,1781634652000,-1184.42,0.00029074,30]
[425250070,1781634652000,-6171.52,0.00029132,30]
[425250071,1781634652000,-3646.17,0.00029132,30]
[425250091,1781634652000,-232.94769071,0.00029265,7]
[425250075,1781634652000,-1184.42,0.00029169,30]
[425250083,1781634652000,-500.14555649,0.00029264,7]
[425250082,1781634652000,-321.25433664,0.00029264,7]
[425250085,1781634652000,-302.95528747,0.00029264,7]
[425250087,1781634652000,-194.3508264,0.00029265,7]
[425250086,1781634652000,-488.7147076,0.00029265,7]
[425250093,1781634652000,-225.77708637,0.00029265,7]
[425250094,1781634652000,-217.62012303,0.00029265,7]
[425250084,1781634652000,-330.20586036,0.00029264,7]
[425250090,1781634652000,-467.72859376,0.00029265,7]
[425250088,1781634652000,-245.51361955,0.00029265,7]
[425250089,1781634652000,-202.60041276,0.00029265,7]
[425250064,1781634652000,-1184.42,0.00029105,2]
[425250077,1781634652000,-1944.57,0.000292,7]
[425250059,1781634652000,-819.0,0.00029049,30]
[425250035,1781634652000,-305.91412123,0.00029,2]
[425250060,1781634652000,-1184.39,0.00029074,30]
[425250034,1781634652000,-1354.08605634,0.00029,2]
[425250044,1781634652000,-156.0,0.00029028,30]
[425250095,1781634652000,-466.31999976,0.00029265,5]
[425250038,1781634652000,-1716.0,0.00029,7]
[425250039,1781634652000,-1000.0,0.00029,2]
[425250041,1781634652000,-1184.39,0.0002901,2]
[425250037,1781634652000,-400.07,0.00029,2]
[425250036,1781634652000,-2289.78897981,0.00029,2]
[425250040,1781634652000,-1900.51013,0.00029,2]
[425250043,1781634652000,-2062.61,0.00029017,2]
[425250042,1781634652000,-1184.42,0.0002901,2]
[425250045,1781634652000,-1184.39,0.00029042,7]
[425250048,1781634652000,-418.0,0.00029049,30]
[425250062,1781634652000,-162.0,0.00029105,3]
[425250047,1781634652000,-418.0,0.00029049,30]
[425250046,1781634652000,-1184.42,0.00029042,7]
[425250051,1781634652000,-2694.0,0.00029049,30]
[425250050,1781634652000,-1853.0,0.00029049,30]
[425250053,1781634652000,-328.0,0.00029049,30]
[425250052,1781634652000,-346.0,0.00029049,30]
[425250049,1781634652000,-304.0,0.00029049,30]
[425250054,1781634652000,-792.0,0.00029049,30]
[425250055,1781634652000,-438.0,0.00029049,30]
[425250058,1781634652000,-335.0,0.00029049,30]
[425250068,1781634652000,-6178.23,0.00029132,30]
[425250067,1781634652000,-3650.11,0.00029132,30]
[425250057,1781634652000,-1535.0,0.00029049,30]
[425250065,1781634652000,-152.0,0.00029131,6]
[425250056,1781634652000,-514.0,0.00029049,30]
[425250106,1781634652000,-352.13977259,0.00029265,2]
[425250092,1781634652000,-466.35982882,0.00029265,7]
[425250100,1781634652000,-227.28306632,0.00029265,7]
[425250126,1781634652000,-469.02977699,0.00029274,7]
[425250131,1781634652000,-175.03080818,0.00029274,7]
[425250128,1781634652000,-214.79676551,0.00029274,7]
[425250136,1781634652000,-591.36103633,0.00029274,7]
[425250135,1781634652000,-575.05043938,0.00029274,7]
[425250146,1781634652000,-355.4181708,0.00029274,7]
[425250144,1781634652000,-534.6131821,0.00029274,7]
[425250139,1781634652000,-461.87448475,0.00029274,7]
[425250147,1781634652000,-486.91345324,0.00029274,7]
[425250138,1781634652000,-626.6035716,0.00029274,7]
[425250141,1781634652000,-218.26582501,0.00029274,7]
[425250143,1781634652000,-499.06311886,0.00029274,7]
[425250137,1781634652000,-203.93419966,0.00029274,7]
[425250142,1781634652000,-659.7387309,0.00029274,7]
[425250145,1781634652000,-435.10899961,0.00029274,7]
[425250148,1781634652000,-469.61366832,0.00029274,7]
[425250150,1781634652000,-448.44326893,0.00029274,2]
[425250152,1781634652000,-611.07153313,0.00029274,7]
[425250153,1781634652000,-596.89069404,0.00029274,7]
[425250155,1781634652000,-325.93834334,0.0002929,7]
[425250151,1781634652000,-674.39421461,0.00029274,7]
[425250154,1781634652000,-483.69960525,0.00029274,7]
[425250156,1781634652000,-3363.26,0.00029299,7]
[425250157,1781634652000,-3650.11,0.00029299,7]
[425250149,1781634652000,-493.40654968,0.00029274,7]
[425250159,1781634652000,-3359.62,0.00029299,7]
[425250158,1781634652000,-6178.23,0.00029299,7]
[425250098,1781634652000,-450.14279349,0.00029265,7]
[425250160,1781634652000,-6171.52,0.00029299,7]
[425250132,1781634652000,-309.05033523,0.00029274,7]
[425250134,1781634652000,-272.53783849,0.00029274,7]
[425250140,1781634652000,-252.24571451,0.00029274,7]
[425250133,1781634652000,-553.10107459,0.00029274,7]
[425250097,1781634652000,-341.55821363,0.00029265,7]
[425250129,1781634652000,-554.06871067,0.00029274,7]
[425250105,1781634652000,-486.50770882,0.00029265,7]
[425250096,1781634652000,-560.62266895,0.00029265,7]
[425250107,1781634652000,-246.86913171,0.00029265,7]
[425250099,1781634652000,-609.79227144,0.00029265,5]
[425250103,1781634652000,-353.63159482,0.00029265,2]
[425250101,1781634652000,-546.69283022,0.00029265,2]
[425250102,1781634652000,-311.68885171,0.00029265,2]
[425250108,1781634652000,-434.55707866,0.00029265,7]
[425250109,1781634652000,-493.49189704,0.00029265,7]
[425250119,1781634652000,-591.59120715,0.00029274,7]
[425250120,1781634652000,-266.31790529,0.00029274,7]
[425250110,1781634652000,-511.589983,0.00029265,7]
[425250113,1781634652000,-502.43613214,0.00029265,7]
[425250104,1781634652000,-234.10149032,0.00029265,7]
[425250114,1781634652000,-165.62709636,0.00029265,7]
[425250112,1781634652000,-472.39317936,0.00029265,7]
[425250125,1781634652000,-651.11036291,0.00029274,7]
[425250122,1781634652000,-486.3349342,0.00029274,7]
[425250124,1781634652000,-566.20116196,0.00029274,7]
[425250123,1781634652000,-569.85990775,0.00029274,7]
[425250121,1781634652000,-524.22734359,0.00029274,7]
[425250127,1781634652000,-513.61636247,0.00029274,7]
[425250117,1781634652000,-721.46258618,0.00029265,7]
[425250118,1781634652000,-723.0,0.00029273,4]
[425250111,1781634652000,-289.84241662,0.00029265,7]
[425250130,1781634652000,-203.13590296,0.00029274,7]
[425250116,1781634652000,-587.06562178,0.00029265,7]
[425250115,1781634652000,-510.34494845,0.00029265,7]
[425250194,1781634653000,-723.0,0.00029807,4]
[425250205,1781634653000,-670.34700401,0.00029836,7]
[425250189,1781634653000,-1233.98,0.000295,7]
[425250188,1781634653000,-1164.0,0.00029481,30]
[425250198,1781634653000,-666.86074199,0.00029835,7]
[425250200,1781634653000,-495.30879054,0.00029835,7]
[425250203,1781634653000,-651.61961014,0.00029836,7]
[425250199,1781634653000,-221.96437482,0.00029835,7]
[425250191,1781634653000,-649.58,0.00029605,2]
[425250202,1781634653000,-158.40575103,0.00029836,2]
[425250201,1781634653000,-454.43293121,0.00029835,7]
[425250207,1781634653000,-178.63142046,0.00029836,2]
[425250209,1781634653000,-222.16208298,0.00029836,7]
[425250204,1781634653000,-245.50810422,0.00029836,7]
[425250223,1781634653000,-311.29510258,0.00029836,7]
[425250208,1781634653000,-388.70165279,0.00029836,7]
[425250206,1781634653000,-201.22052711,0.00029836,7]
[425250220,1781634653000,-621.8131051,0.00029836,7]
[425250221,1781634653000,-165.55061113,0.00029836,7]
[425250222,1781634653000,-451.55417274,0.00029836,7]
[425250216,1781634653000,-623.63812501,0.00029836,7]
[425250212,1781634653000,-233.82829513,0.00029836,7]
[425250215,1781634653000,-405.20082551,0.00029836,7]
[425250211,1781634653000,-410.27510891,0.00029836,7]
[425250214,1781634653000,-173.98411933,0.00029836,7]
[425250213,1781634653000,-491.02723909,0.00029836,7]
[425250217,1781634653000,-165.44881996,0.00029836,2]
[425250193,1781634653000,-400.0,0.0002977,2]
[425250210,1781634653000,-377.44229714,0.00029836,7]
[425250190,1781634653000,-150.0,0.00029534,2]
[425250168,1781634653000,-387.15655753,0.00029307,7]
[425250192,1781634653000,-160.0,0.00029745,3]
[425250218,1781634653000,-426.4711613,0.00029836,7]
[425250169,1781634653000,-622.42721947,0.00029307,7]
[425250172,1781634653000,-523.82948036,0.00029307,7]
[425250171,1781634653000,-549.8786532,0.00029307,7]
[425250170,1781634653000,-457.11097454,0.00029307,7]
[425250161,1781634653000,-3646.17,0.00029299,7]
[425250164,1781634653000,-620.39465737,0.00029307,7]
[425250162,1781634653000,-153.91866506,0.00029305,20]
[425250167,1781634653000,-599.86033631,0.00029307,7]
[425250166,1781634653000,-456.76239936,0.00029307,7]
[425250163,1781634653000,-452.40693625,0.00029307,7]
[425250165,1781634653000,-193.2307433,0.00029307,7]
[425250175,1781634653000,-445.0,0.0002931,2]
[425250184,1781634653000,-721.12765534,0.00029348,2]
[425250173,1781634653000,-592.01841028,0.00029307,7]
[425250185,1781634653000,-251.11897888,0.0002935,2]
[425250179,1781634653000,-167.31,0.00029328,14]
[425250174,1781634653000,-403.0,0.0002931,2]
[425250181,1781634653000,-167.3,0.00029328,14]
[425250183,1781634653000,-621.78829552,0.00029348,2]
[425250182,1781634653000,-151.0,0.00029348,2]
[425250176,1781634653000,-443.0,0.0002931,2]
[425250180,1781634653000,-167.31,0.00029328,14]
[425250178,1781634653000,-191.76,0.00029328,14]
[425250177,1781634653000,-191.75,0.00029328,14]
[425250186,1781634653000,-280.03725111,0.0002935,2]
[425250195,1781634653000,-1223.87,0.00029828,10]
[425250196,1781634653000,-637.9,0.00029828,10]
[425250197,1781634653000,-481.88150496,0.00029835,7]
[425250187,1781634653000,-151.0,0.0002935,2]
[425250219,1781634653000,-226.20959212,0.00029836,7]
[425250240,1781634653000,-579.68483325,0.00029836,7]
[425250226,1781634653000,-512.33732044,0.00029836,7]
[425250260,1781634653000,-392.09235894,0.00029845,7]
[425250253,1781634653000,-868.14715054,0.00029845,7]
[425250263,1781634653000,-159.92940095,0.00029845,7]
[425250257,1781634653000,-229.5782513,0.00029845,7]
[425250267,1781634653000,-545.07567698,0.00029845,7]
[425250266,1781634653000,-737.46809945,0.00029845,7]
[425250264,1781634653000,-156.95396187,0.00029845,7]
[425250268,1781634653000,-304.10814886,0.00029845,7]
[425250271,1781634653000,-788.48138177,0.00029845,7]
[425250269,1781634653000,-766.73391917,0.00029845,7]
[425250272,1781634653000,-151.11173499,0.00029845,7]
[425250270,1781634653000,-159.95108294,0.00029845,2]
[425250273,1781634653000,-159.62180091,0.00029845,7]
[425250274,1781634653000,-232.7376226,0.00029845,7]
[425250276,1781634653000,-835.4714288,0.00029845,7]
[425250275,1781634653000,-407.86839933,0.00029845,7]
[425250265,1781634653000,-463.57550285,0.00029845,7]
[425250277,1781634653000,-615.83264633,0.00029845,7]
[425250279,1781634653000,-436.53165001,0.00029845,7]
[425250281,1781634653000,-665.41749181,0.00029845,7]
[425250280,1781634653000,-879.65164121,0.00029845,7]
[425250282,1781634653000,-435.95850267,0.00029845,7]
[425250286,1781634653000,-533.1272562,0.00029845,7]
[425250278,1781634653000,-504.49142903,0.00029845,7]
[425250287,1781634653000,-418.7324738,0.00029845,7]
[425250284,1781634653000,-652.66349942,0.00029845,7]
[425250285,1781634653000,-484.28590869,0.00029845,7]
[425250288,1781634653000,-730.37017986,0.00029845,7]
[425250224,1781634653000,-435.24024606,0.00029836,7]
[425250262,1781634653000,-160.29679251,0.00029845,7]
[425250261,1781634653000,-350.06161636,0.00029845,7]
[425250283,1781634653000,-712.81757614,0.00029845,7]
[425250258,1781634653000,-429.59353102,0.00029845,7]
[425250225,1781634653000,-747.49689194,0.00029836,7]
[425250235,1781634653000,-729.76156324,0.00029836,7]
[425250228,1781634653000,-699.47999964,0.00029836,5]
[425250227,1781634653000,-675.21419024,0.00029836,7]
[425250236,1781634653000,-528.20965889,0.00029836,2]
[425250230,1781634653000,-454.56613264,0.00029836,7]
[425250233,1781634653000,-530.44739224,0.00029836,2]
[425250229,1781634653000,-813.05636193,0.00029836,5]
[425250255,1781634653000,-625.37303599,0.00029845,7]
[425250231,1781634653000,-728.92377363,0.00029836,2]
[425250234,1781634653000,-468.20298063,0.00029836,7]
[425250248,1781634653000,-532.63581058,0.00029845,7]
[425250238,1781634653000,-657.98919605,0.00029836,7]
[425250249,1781634653000,-698.96979146,0.00029845,7]
[425250232,1781634653000,-467.53327757,0.00029836,2]
[425250244,1781634653000,-680.45993126,0.00029836,7]
[425250259,1781634653000,-738.7582809,0.00029845,7]
[425250239,1781634653000,-465.89538143,0.00029836,7]
[425250251,1781634653000,-759.81321034,0.00029845,7]
[425250256,1781634653000,-684.82181663,0.00029845,7]
[425250254,1781634653000,-686.56094599,0.00029845,7]
[425250252,1781634653000,-754.93488261,0.00029845,7]
[425250250,1781634653000,-648.44657893,0.00029845,7]
[425250237,1781634653000,-651.83561799,0.00029836,7]
[425250246,1781634653000,-961.9501149,0.00029836,7]
[425250243,1781634653000,-331.25419272,0.00029836,7]
[425250242,1781634653000,-669.91484285,0.00029836,7]
[425250241,1781634653000,-708.58976904,0.00029836,7]
[425250245,1781634653000,-782.75416238,0.00029836,7]
[425250247,1781634653000,-788.7882762,0.00029845,7]
[425250339,1781634654000,-405.12654821,0.00029879,7]
[425250332,1781634654000,-580.7348363,0.00029879,7]
[425250333,1781634654000,-649.18990173,0.00029879,7]
[425250328,1781634654000,-386.46148661,0.00029879,7]
[425250318,1781634654000,-592.11,0.00029863,7]
[425250322,1781634654000,-592.11,0.00029863,7]
[425250323,1781634654000,-592.11,0.00029863,7]
[425250324,1781634654000,-592.11,0.00029863,7]
[425250319,1781634654000,-592.11,0.00029863,7]
[425250316,1781634654000,-592.11,0.00029863,7]
[425250321,1781634654000,-592.11,0.00029863,7]
[425250331,1781634654000,-799.81378174,0.00029879,7]
[425250345,1781634654000,-2886.11,0.000299,7]
[425250330,1781634654000,-609.01653248,0.00029879,7]
[425250336,1781634654000,-427.28519817,0.00029879,7]
[425250335,1781634654000,-829.90295929,0.00029879,7]
[425250337,1781634654000,-733.17153759,0.00029879,7]
[425250329,1781634654000,-371.60429956,0.00029879,7]
[425250338,1781634654000,-698.43930715,0.00029879,7]
[425250340,1781634654000,-789.35788038,0.00029879,7]
[425250352,1781634654000,-17269.91714149,0.000299,2]
[425250342,1781634654000,-260.4103811,0.00029898,2]
[425250341,1781634654000,-406.27180593,0.0002988,7]
[425250343,1781634654000,-290.3986294,0.00029898,2]
[425250353,1781634654000,-17269.91714149,0.000299,2]
[425250348,1781634654000,-17269.91714149,0.000299,2]
[425250326,1781634654000,-603.20924834,0.00029879,7]
[425250334,1781634654000,-609.48129939,0.00029879,7]
[425250327,1781634654000,-827.1928765,0.00029879,7]
[425250303,1781634654000,-592.11,0.00029863,7]
[425250320,1781634654000,-592.11,0.00029863,7]
[425250346,1781634654000,-1944.57,0.000299,7]
[425250289,1781634654000,-626.15155776,0.00029845,7]
[425250290,1781634654000,-657.87539957,0.00029845,7]
[425250300,1781634654000,-592.11,0.00029863,7]
[425250291,1781634654000,-672.6649034,0.00029845,2]
[425250299,1781634654000,-592.11,0.00029863,7]
[425250301,1781634654000,-592.11,0.00029863,7]
[425250302,1781634654000,-592.11,0.00029863,7]
[425250292,1781634654000,-899.19228614,0.00029845,7]
[425250295,1781634654000,-644.932807,0.00029845,7]
[425250296,1781634654000,-202.5632741,0.00029862,7]
[425250293,1781634654000,-814.76204418,0.00029845,7]
[425250294,1781634654000,-795.85425872,0.00029845,7]
[425250317,1781634654000,-592.11,0.00029863,7]
[425250297,1781634654000,-626.74788506,0.00029862,7]
[425250305,1781634654000,-592.11,0.00029863,7]
[425250307,1781634654000,-592.11,0.00029863,7]
[425250304,1781634654000,-592.11,0.00029863,7]
[425250306,1781634654000,-592.11,0.00029863,7]
[425250310,1781634654000,-592.11,0.00029863,7]
[425250313,1781634654000,-592.11,0.00029863,7]
[425250309,1781634654000,-592.11,0.00029863,7]
[425250308,1781634654000,-592.11,0.00029863,7]